bitfinex/quotes_SOLUSD_20241113
["timestamp","ask_amount","ask_price","bid_price","bid_amount"]
[1731518883950,30.8516,217.54,217.52,23.776884]
[1731518884145,30.8516,217.54,217.53,43.776884]
[1731518884346,30.8516,217.54,217.53,20.0]
[1731518884534,0.1,217.52,217.42,23.776884]
[1731518884740,0.1,217.5,217.45,20.0]
[1731518885455,0.1,217.46,217.34,18.475112]
[1731518885664,12.4047,217.46,217.34,18.475112]
[1731518886140,12.4047,217.46,217.34,25.62224754]
[1731518886647,12.3047,217.46,217.35,0.12549]
[1731518886953,12.3047,217.46,217.35,23.902374]
[1731518887154,12.3047,217.46,217.38,20.0]
[1731518887369,12.3047,217.46,217.4,20.0]
[1731518887557,12.3047,217.46,217.41,23.776884]
[1731518887763,12.3047,217.46,217.4,20.0]
[1731518888051,12.3047,217.46,217.45,23.776884]
[1731518888282,12.3047,217.46,217.45,43.776884]
[1731518889453,12.3047,217.46,217.34,18.375112]
[1731518889454,12.3047,217.46,217.43,23.776884]
[1731518889757,0.1,217.42,217.37,4.573]
[1731518889952,32.1954,217.44,217.37,4.573]
[1731518890252,32.1954,217.44,217.38,0.12549]
[1731518890439,0.1,217.42,217.38,0.12549]
[1731518890641,32.0954,217.44,217.38,0.12549]
[1731518890642,32.1954,217.44,217.38,0.12549]
[1731518890962,32.1954,217.44,217.38,24.69849]
[1731518891267,32.0954,217.44,217.4,18.62549]
[1731518891767,0.1,217.39,217.34,27.48]
[1731518891961,0.1,217.43,217.35,27.48]
[1731518892180,0.1,217.41,217.3,22.28252568]
[1731518892354,0.1,217.41,217.3,29.31435046]
[1731518892745,0.1,217.39,217.31,32.053]
[1731518893264,0.1,217.39,217.31,27.48]
[1731518893444,0.1,217.39,217.34,20.12549]
[1731518893764,0.1,217.39,217.36,20.12549]
[1731518896146,0.1,217.39,217.31,0.12549]
[1731518896461,0.1,217.37,217.34,20.0]
[1731518896867,0.1,217.37,217.35,0.12549]
[1731518897748,0.1,217.37,217.29,24.2060417]
[1731518898071,0.1,217.35,217.3,0.12549]
[1731518898642,0.1,217.37,217.3,0.12549]
[1731518898848,0.1,217.37,217.32,0.12549]
[1731518899057,0.1,217.39,217.34,20.12549]
[1731518899543,0.1,217.37,217.34,20.12549]
[1731518899748,0.1,217.39,217.34,20.12549]
[1731518900453,0.1,217.41,217.38,20.12549]
[1731518901969,0.1,217.39,217.31,4.68215093]
[1731518902166,0.1,217.39,217.32,23.776884]
[1731518902372,0.1,217.39,217.33,0.12549]
[1731518902571,0.1,217.41,217.33,0.12549]
[1731518902951,0.1,217.39,217.34,23.776884]
[1731518903152,0.1,217.39,217.35,0.12549]
[1731518903353,0.1,217.37,217.35,0.12549]
[1731518903568,0.1,217.37,217.3,27.48]
[1731518903771,32.0954,217.44,217.3,27.48]
[1731518903772,0.1,217.35,217.31,0.12549]
[1731518904049,0.1,217.37,217.31,0.12549]
[1731518904451,31.6954,217.44,217.33,0.12549]
[1731518904655,31.6954,217.44,217.33,20.12549]
[1731518905168,31.6954,217.44,217.35,20.12549]
[1731518905371,31.6954,217.44,217.36,23.776884]
[1731518905579,31.6954,217.44,217.39,20.0]
[1731518905871,31.6954,217.44,217.41,20.0]
[1731518906978,31.69539987,217.44,217.42,23.776884]
[1731518907170,12.9814,217.59,217.44,23.776884]
[1731518907417,12.9814,217.59,217.47,20.0]
[1731518908058,13.0814,217.59,217.45,20.0]
[1731518908264,13.0814,217.59,217.43,20.0]
[1731518908475,13.0814,217.59,217.45,20.0]
[1731518909978,30.48,217.58,217.45,20.0]
[1731518910567,30.48,217.58,217.47,20.0]
[1731518912372,30.48,217.58,217.42,43.776884]
[1731518913288,0.1,217.55,217.35,27.48]
[1731518913461,12.5039,217.54,217.35,27.48]
[1731518913782,31.1054,217.53,217.35,7.23275753]
[1731518913972,31.2054,217.53,217.33,3.90195768]
[1731518914273,31.2054,217.53,217.34,0.12549]
[1731518914480,12.0825,217.52,217.33,3.90195768]
[1731518914667,12.1825,217.52,217.33,3.90195768]
[1731518914869,12.0825,217.47,217.29,0.4291577]
[1731518915080,12.0825,217.47,217.3,0.12549]
[1731518915279,12.0825,217.47,217.3,0.21752865]
[1731518915581,12.0825,217.47,217.3,0.09203865]
[1731518915771,12.1825,217.47,217.3,0.09203865]
[1731518916088,12.1825,217.47,217.3,0.21752865]
[1731518916385,12.0825,217.47,217.3,34.79157295]
[1731518916565,12.0825,217.47,217.3,39.47372388]
[1731518916887,12.0825,217.47,217.32,0.12549]
[1731518917269,12.0825,217.47,217.31,23.776884]
[1731518917772,12.0825,217.47,217.34,20.12549]
[1731518917977,12.0825,217.47,217.38,20.0]
[1731518918168,12.0825,217.47,217.39,23.776884]
[1731518918379,12.0825,217.47,217.4,20.0]
[1731518918577,12.0825,217.47,217.41,23.776884]
[1731518918878,12.0825,217.47,217.37,0.12549]
[1731518918879,12.0825,217.47,217.42,20.0]
[1731518919377,12.0825,217.47,217.37,0.12549]
[1731518919378,12.0825,217.47,217.37,20.12549]
[1731518919684,12.0825,217.47,217.39,20.0]
[1731518920076,12.0825,217.47,217.38,20.0]
[1731518920297,12.0825,217.47,217.39,0.12549]
[1731518921180,12.0825,217.47,217.39,23.902374]
[1731518921380,12.0825,217.47,217.41,0.12549]
[1731518922169,12.0825,217.47,217.38,20.0]
[1731518922395,12.0825,217.47,217.32,27.48]
[1731518923285,12.0825,217.47,217.33,0.12549]
[1731518923690,12.0825,217.47,217.35,0.12549]
[1731518923893,12.0825,217.47,217.35,23.902374]
[1731518924080,12.0825,217.47,217.37,0.12549]
[1731518925168,12.0825,217.47,217.34,20.0]
[1731518925369,12.0825,217.47,217.35,0.12549]
[1731518926264,12.0825,217.47,217.37,0.12549]
[1731518926899,12.0825,217.47,217.33,20.0]
[1731518927670,12.0825,217.47,217.34,0.12549]
[1731518928087,12.0825,217.47,217.36,0.12549]
[1731518929069,12.0825,217.47,217.34,20.12549]
[1731518929280,12.0825,217.47,217.36,0.12549]
[1731518929487,12.0825,217.47,217.36,20.12549]
[1731518933295,12.0825,217.47,217.38,0.12549]
[1731518936409,12.0825,217.47,217.37,0.12549]
[1731518937508,12.0825,217.47,217.37,4.69849]
[1731518938006,12.0825,217.47,217.39,4.69849]
[1731518938574,16.6809,217.47,217.39,4.69849]
[1731518939199,16.6809,217.47,217.36,20.0]
[1731518939200,12.0825,217.47,217.38,0.12549]
[1731518940876,16.6808,217.47,217.38,0.12549]
[1731518941088,0.2,217.46,217.29,27.9091577]
[1731518941295,160.5,217.45,217.29,27.9091577]
[1731518941583,160.5,217.45,217.3,0.12549]
[1731518941978,160.5,217.45,217.3,4.69849]
[1731518942221,160.5,217.45,217.32,0.12549]
[1731518942599,165.0988,217.45,217.32,0.12549]
[1731518942786,160.5,217.45,217.34,0.12549]
[1731518943002,165.2985,217.46,217.34,0.12549]
[1731518943688,165.2985,217.46,217.31,20.12549]
[1731518944285,165.2985,217.46,217.32,4.573]
[1731518944606,165.2985,217.46,217.33,0.12549]
[1731518945002,165.2985,217.46,217.32,0.12549]
[1731518946216,165.2985,217.46,217.29,7.69396502]
[1731518946217,30.8992,217.42,217.3,20.0]
[1731518946782,30.8992,217.42,217.31,0.12549]
[1731518947514,30.8992,217.42,217.33,23.902374]
[1731518947705,30.8992,217.42,217.35,0.12549]
[1731518948305,30.8992,217.42,217.33,20.12549]
[1731518952801,30.8992,217.42,217.33,24.69849]
[1731518953207,30.8992,217.42,217.35,4.69849]
[1731518953726,30.8992,217.42,217.34,23.902374]
[1731518953913,30.8992,217.42,217.38,0.12549]
[1731518954092,12.1324,217.47,217.4,0.12549]
[1731518954093,42.39,217.47,217.4,0.12549]
[1731518954310,42.39,217.47,217.42,0.12549]
[1731518955330,46.9883,217.47,217.26,27.48]
[1731518955519,47.0883,217.47,217.26,27.48]
[1731518955888,47.0883,217.47,217.3,0.12549]
[1731518956418,47.0883,217.47,217.3,32.17849]
[1731518956720,42.39,217.47,217.35,23.776884]
[1731518956928,42.39,217.47,217.36,20.12549]
[1731518958794,42.39,217.47,217.36,27.19326147]
[1731518959002,46.9883,217.47,217.36,27.19326147]
[1731518959323,42.39,217.47,217.36,27.19326147]
[1731518962108,46.9883,217.47,217.36,27.19326147]
[1731518962413,160.5,217.46,217.36,27.19326147]
[1731518963216,160.5,217.46,217.38,0.12549]
[1731518968412,202.89,217.47,217.38,0.12549]
[1731518969736,42.39,217.47,217.39,20.12549]
[1731518970024,42.39,217.47,217.41,20.12549]
[1731518970627,46.0514,217.53,217.44,28.349884]
[1731518970823,46.0514,217.53,217.47,28.475374]
[1731518973329,42.0775,217.58,217.47,20.0]
[1731518973514,42.0775,217.58,217.48,0.12549]
[1731518973738,0.1,217.55,217.44,6.94984291]
[1731518973915,160.5,217.54,217.44,4.573]
[1731518974121,160.5,217.54,217.45,0.12549]
[1731518974346,45.6325,217.53,217.44,4.573]
[1731518974650,160.5,217.52,217.39,0.12549]
[1731518974807,160.5,217.51,217.36,27.48]
[1731518975007,160.5,217.51,217.37,4.573]
[1731518975308,0.1,217.49,217.37,4.573]
[1731518975511,160.5,217.5,217.37,4.573]
[1731518975931,160.5,217.5,217.37,32.053]
[1731518976130,45.6325,217.53,217.37,32.053]
[1731518976131,160.5,217.51,217.38,0.12549]
[1731518976510,160.5,217.51,217.38,20.12549]
[1731518976709,160.5,217.51,217.4,0.12549]
[1731518977209,160.5,217.52,217.4,0.12549]
[1731518977411,160.5,217.52,217.41,0.12549]
[1731518978026,165.0973,217.52,217.39,4.573]
[1731518978325,165.0973,217.52,217.38,0.12549]
[1731518978553,160.5,217.52,217.38,0.12549]
[1731518979446,160.5,217.52,217.4,0.12549]
[1731518980133,160.5,217.51,217.4,0.12549]
[1731518980918,160.5,217.52,217.4,0.12549]
[1731518982716,45.6325,217.53,217.41,20.0]
[1731518983240,45.7325,217.53,217.37,24.573]
[1731518983419,45.6325,217.53,217.39,20.0]
[1731518983728,45.6325,217.53,217.4,23.776884]
[1731518984040,45.6325,217.53,217.41,20.0]
[1731518985035,160.5,217.52,217.41,20.0]
[1731518985336,160.5,217.52,217.39,20.0]
[1731518986524,160.5,217.52,217.37,20.0]
[1731518986721,4.5974,217.51,217.38,0.12549]
[1731518987251,160.5,217.5,217.37,24.573]
[1731518987425,160.5,217.5,217.38,0.12549]
[1731518988023,160.5,217.5,217.38,27.60549]
[1731518988229,165.0977,217.5,217.4,0.12549]
[1731518988937,165.0977,217.5,217.4,4.69849]
[1731518989320,165.1977,217.5,217.39,0.12549]
[1731518989529,160.5,217.49,217.38,4.573]
[1731518989836,12.9156,217.36,217.18,33.0144]
[1731518990045,12.9156,217.36,217.28,7.14763301]
[1731518990735,12.9156,217.36,217.3,0.12549]
[1731518991134,12.9156,217.36,217.29,5.0021577]
[1731518991638,12.9156,217.36,217.3,0.12549]
[1731518992039,12.9156,217.36,217.29,5.0021577]
[1731518992221,12.9156,217.36,217.3,0.12549]
[1731518993421,12.9156,217.36,217.29,0.4291577]
[1731518993422,0.1,217.33,217.29,0.4291577]
[1731518993734,160.5,217.32,217.29,0.4291577]
[1731518996624,160.5,217.32,217.3,0.12549]
[1731518997942,17.6164,217.36,217.07,0.4291577]
[1731518997943,0.1,217.11,217.07,0.4291577]
[1731518998141,0.1,217.03,216.89,7.27935477]
[1731518998336,168.19319134,217.1,216.89,7.27935477]
[1731518998337,160.5,217.15,216.92,0.1]
[1731518998633,103.550735,217.31,216.92,0.1]
[1731518998634,160.5,217.14,216.94,0.1]
[1731518998833,160.5,217.14,216.96,4.588]
[1731518999031,160.5,217.14,216.97,5.31493197]
[1731518999243,0.1,217.19,216.97,5.31493197]
[1731518999244,160.5,217.15,216.97,5.40711061]
[1731518999827,160.5,217.15,216.98,20.0]
[1731519000148,160.5,217.14,216.98,4.68017439]
[1731519000645,13.92270569,217.11,216.98,0.09217439]
[1731519000939,13.92270569,217.06,216.98,0.09217439]
[1731519001141,160.5,217.05,216.98,0.09217439]
[1731519001729,160.6,217.05,216.98,0.09217439]
[1731519001929,160.5,217.04,216.98,0.09217439]
[1731519002341,160.6,217.04,216.98,0.09217439]
[1731519002839,160.5,217.04,216.98,0.09217439]
[1731519003422,160.6,217.04,216.98,0.09217439]
[1731519003632,0.1,217.01,216.98,0.09217439]
[1731519003842,160.5,217.0,216.98,0.09217439]
[1731519004230,204.1239,216.99,216.98,0.09217439]
[1731519004438,160.5,216.97,216.83,6.94889813]
[1731519004631,182.98497341,216.97,216.83,6.94889813]
[1731519004861,43.5239,216.99,216.71,12.5948]
[1731519004862,0.2,216.94,216.71,12.5948]
[1731519005161,0.2,216.94,216.61,230.03548063]
[1731519005162,0.1,216.85,216.59,12.5948]
[1731519005327,182.98497341,216.84,216.74,0.39455939]
[1731519005528,182.98497341,216.84,216.75,0.35510345]
[1731519005529,160.5,216.83,216.75,0.35510345]
[1731519005740,160.5,216.83,216.64,7.7982168]
[1731519005937,43.5239,216.87,216.76,0.3195931]
[1731519006149,4.6091,216.96,216.77,0.12549]
[1731519006150,160.5,216.94,216.77,0.12549]
[1731519006346,160.5,216.93,216.77,0.12549]
[1731519006549,160.5,216.93,216.71,27.58]
[1731519006550,0.1,216.91,216.78,0.112941]
[1731519006741,0.1,216.91,216.66,0.22549]
[1731519006935,160.5,216.9,216.68,0.12549]
[1731519007277,160.5,216.9,216.64,7.63126025]
[1731519007278,0.2,216.87,216.69,0.39455939]
[1731519007556,0.2,216.87,216.65,0.39455939]
[1731519007557,0.1,216.85,216.65,0.39455939]
[1731519007758,160.5,216.84,216.65,0.39455939]
[1731519007939,160.5,216.84,216.65,4.98255939]
[1731519008142,160.5,216.84,216.66,0.12549]
[1731519008449,160.5,216.84,216.64,7.63126025]
[1731519008450,160.5,216.84,216.68,0.12549]
[1731519008642,160.5,216.84,216.69,0.39455939]
[1731519009042,160.5,216.84,216.66,0.12549]
[1731519009375,182.98497341,216.84,216.65,0.39455939]
[1731519009576,22.38497341,216.73,216.65,0.39455939]
[1731519009748,66.34227341,216.81,216.48,7.22854854]
[1731519009749,30.742,216.56,216.48,7.22854854]
[1731519010061,160.5,216.63,216.42,7.90470961]
[1731519010369,160.5,216.62,216.42,7.70470961]
[1731519010650,0.1,216.53,216.42,0.4291577]
[1731519010944,13.2153,216.65,216.42,0.4291577]
[1731519010945,160.5,216.52,216.42,0.4291577]
[1731519011685,0.2,216.55,216.3,0.88]
[1731519011686,22.38497341,216.45,216.3,0.88]
[1731519011970,13.1577,216.5,216.3,7.91911071]
[1731519012155,13.1577,216.5,216.3,0.88]
[1731519012449,0.1,216.46,216.3,0.88]
[1731519012654,0.1,216.39,216.3,0.88]
[1731519012945,0.1,216.42,216.3,0.88]
[1731519012946,0.2,216.46,216.3,0.88]
[1731519013144,0.1,216.4,216.3,0.88]
[1731519013348,173.5577,216.5,216.3,0.88]
[1731519013555,22.48497341,216.48,216.3,0.88]
[1731519013748,22.38497341,216.46,216.3,0.88]
[1731519013932,22.48497341,216.48,216.3,0.88]
[1731519014138,0.2,216.45,216.3,0.88]
[1731519014339,0.1,216.42,216.3,0.88]
[1731519014851,22.38497341,216.48,216.3,0.88]
[1731519014852,160.5,216.48,216.3,0.88]
[1731519015241,160.5,216.49,216.31,0.12549]
[1731519015852,160.5,216.49,216.31,23.902374]
[1731519016037,160.5,216.49,216.35,0.12549]
[1731519016356,160.5,216.48,216.35,0.12549]
[1731519016659,160.5,216.48,216.35,23.902374]
[1731519016955,160.5,216.48,216.37,0.12549]
[1731519017457,160.5,216.48,216.34,20.0]
[1731519017641,160.5,216.48,216.35,0.12549]
[1731519017872,7.09699774,216.51,216.35,23.902374]
[1731519018080,22.38497341,216.55,216.41,23.776884]
[1731519018244,160.5,216.54,216.4,20.0]
[1731519018739,160.5,216.54,216.38,27.2092306]
[1731519018968,182.98497341,216.53,216.31,23.776884]
[1731519019163,160.5,216.52,216.36,20.0]
[1731519019369,160.5,216.51,216.35,23.776884]
[1731519019563,182.88497341,216.51,216.35,23.776884]
[1731519019859,0.2,216.53,216.3,7.99222304]
[1731519019860,160.5,216.5,216.3,7.99222304]
[1731519020043,160.5,216.49,216.3,7.99222304]
[1731519020247,160.5,216.48,216.3,7.99222304]
[1731519020444,160.5,216.47,216.3,7.99222304]
[1731519020652,160.5,216.46,216.31,20.0]
[1731519020844,160.5,216.45,216.31,20.0]
[1731519021050,160.5,216.45,216.3,0.88]
[1731519021051,182.88497341,216.44,216.3,0.88]
[1731519021351,0.1,216.43,216.3,0.88]
[1731519021553,160.5,216.44,216.3,0.88]
[1731519022250,160.5,216.44,216.31,0.12549]
[1731519022452,160.5,216.43,216.3,0.88]
[1731519022662,160.5,216.43,216.31,0.12549]
[1731519022856,22.38497341,216.38,216.3,0.88]
[1731519023264,22.38497341,216.31,216.3,0.88]
[1731519023758,0.1,216.3,216.27,0.4356032]
[1731519023959,22.38497341,216.28,216.27,0.4356032]
[1731519024261,22.58497341,216.28,216.05,6.58678436]
[1731519024452,22.38497341,216.24,216.05,6.58678436]
[1731519024761,22.38497341,216.25,216.05,6.08678436]
[1731519025080,22.38497341,216.29,216.03,0.2]
[1731519025363,22.38497341,216.31,216.06,0.22549]
[1731519026168,27.00707341,216.35,216.11,0.12549]
[1731519026462,22.38497341,216.33,216.15,20.12549]
[1731519026651,22.38497341,216.35,216.17,20.12549]
[1731519026962,4.7218,216.37,216.17,20.12549]
[1731519026963,22.48497341,216.34,216.17,20.12549]
[1731519027273,22.38497341,216.3,216.05,27.48]
[1731519027468,22.38497341,216.3,216.05,0.1]
[1731519027758,22.38497341,216.29,216.05,7.1985221]
[1731519027946,22.48497341,216.26,216.05,7.0985221]
[1731519028157,22.38497341,216.21,215.96,0.1]
[1731519028364,22.38497341,216.19,215.96,6.99189209]
[1731519028657,22.58497341,216.2,215.95,12.0853]
[1731519028840,22.38497341,216.19,215.95,12.0853]
[1731519029034,22.38497341,216.19,215.95,12.1853]
[1731519029240,22.38497341,216.19,215.95,12.0853]
[1731519029451,22.38497341,216.19,215.95,19.2508105]
[1731519029658,71.42947341,216.22,215.96,20.0]
[1731519029860,44.2196,216.22,215.97,23.87823256]
[1731519030162,44.2196,216.22,215.99,0.12549]
[1731519030757,22.38497341,216.27,216.02,20.0]
[1731519030950,22.48497341,216.24,216.05,23.776884]
[1731519031261,0.1,216.27,216.09,23.776884]
[1731519031453,0.1,216.27,216.07,23.776884]
[1731519031454,7.10613079,216.23,216.11,23.776884]
[1731519031660,22.38497341,216.31,216.12,0.12549]
[1731519031843,7.10501336,216.22,216.12,0.12549]
[1731519032177,160.5,216.34,216.16,0.12549]
[1731519032476,7.10387149,216.23,216.16,0.12549]
[1731519032660,0.1,216.32,216.16,0.12549]
[1731519032964,7.11453345,216.23,216.16,0.12549]
[1731519033261,165.2228,216.32,216.16,0.12549]
[1731519033570,165.1228,216.32,216.16,0.12549]
[1731519033863,7.11437078,216.31,216.16,0.12549]
[1731519034565,11.73747078,216.31,216.16,0.12549]
[1731519035563,22.38497341,216.24,215.99,0.1]
[1731519035781,0.1,216.21,215.95,12.0853]
[1731519036259,22.38497341,216.2,215.95,17.9014915]
[1731519036451,22.38497341,216.17,215.95,17.9014915]
[1731519036648,22.38497341,216.15,215.95,17.9014915]
[1731519036847,36.79028104,216.17,215.95,5.8161915]
[1731519037145,18.497233,216.16,215.94,0.7443811]
[1731519037356,36.69028104,216.22,215.96,0.1]
[1731519037557,18.495154,216.21,215.98,0.1]
[1731519037964,41.31498104,216.23,215.98,0.1]
[1731519038272,18.493401,216.23,216.01,0.1]
[1731519038449,12.8144,216.24,216.04,0.12549]
[1731519038642,12.8144,216.24,216.03,24.588]
[1731519038643,49.50468104,216.24,215.9,0.1]
[1731519038848,160.5,216.28,216.04,12.8463]
[1731519039044,160.5,216.29,216.05,0.12549]
[1731519039242,165.1234,216.29,216.05,0.12549]
[1731519039457,160.5,216.29,216.07,0.12549]
[1731519039670,0.3945594,216.28,216.07,0.12549]
[1731519040061,0.3945594,216.28,216.06,0.12549]
[1731519040443,5.0182594,216.28,216.06,4.71349]
[1731519040681,5.0182594,216.28,216.1,24.71349]
[1731519040854,160.5,216.27,216.13,23.776884]
[1731519041174,0.3945594,216.26,216.14,0.12549]
[1731519041364,37.08484044,216.26,216.04,18.67490286]
[1731519041666,37.08484044,216.26,216.05,4.588]
[1731519041864,37.08484044,216.26,216.06,0.12549]
[1731519042059,0.3945594,216.26,216.06,0.12549]
[1731519042263,159.89352525,216.26,216.06,0.12549]
[1731519042452,159.89352525,216.26,216.08,28.364884]
[1731519042655,4.6242,216.25,216.09,23.776884]
[1731519042854,4.6242,216.25,216.1,0.12549]
[1731519043855,159.89352525,216.26,216.13,20.0]
[1731519044054,36.69028104,216.31,216.05,20.0]
[1731519044055,36.69028104,216.21,216.05,20.0]
[1731519044265,36.69028104,216.22,216.05,20.0]
[1731519044567,36.69028104,216.22,216.05,25.73930741]
[1731519044749,36.69028104,216.22,216.05,5.73930741]
[1731519044950,36.69028104,216.22,216.06,0.12549]
[1731519045354,41.31538104,216.21,216.06,23.902374]
[1731519045664,41.31538104,216.21,216.05,4.588]
[1731519045872,36.69028104,216.19,216.05,4.588]
[1731519046097,36.69028104,216.2,216.05,4.588]
[1731519046652,41.31538104,216.21,216.05,4.588]
[1731519046852,4.6251,216.21,216.05,4.588]
[1731519047173,4.6251,216.21,216.07,0.12549]
[1731519047669,41.31538104,216.21,216.07,0.12549]
[1731519047865,4.6251,216.21,216.07,0.12549]
[1731519048172,159.89352525,216.22,216.08,23.776884]
[1731519048384,7.12132789,216.24,216.13,0.12549]
[1731519048675,159.89352525,216.28,216.14,23.776884]
[1731519048861,164.51722525,216.28,216.15,0.12549]
[1731519049461,164.51722525,216.28,216.14,0.12549]
[1731519049650,159.89352525,216.31,216.18,0.12549]
[1731519049862,36.69028104,216.35,216.2,0.12549]
[1731519049863,159.89352525,216.3,216.2,0.12549]
[1731519050271,159.89352525,216.3,216.18,0.12549]
[1731519050483,159.89352525,216.3,216.2,0.12549]
[1731519050771,159.89352525,216.34,216.22,0.12549]
[1731519050964,36.69028104,216.31,216.22,0.12549]
[1731519051159,36.69028104,216.28,216.11,20.0]
[1731519051357,159.89352525,216.27,216.11,20.0]
[1731519051575,159.89352525,216.27,216.11,25.69599992]
[1731519051766,167.00782637,216.27,216.13,0.12549]
[1731519052276,203.69810741,216.27,216.11,25.69599992]
[1731519052463,201.20780629,216.26,216.11,25.69599992]
[1731519052662,164.51752525,216.26,216.11,30.28399992]
[1731519052871,159.89352525,216.25,216.11,25.69599992]
[1731519053377,196.58380629,216.24,216.11,5.69599992]
[1731519053668,4.6247,216.23,216.05,0.12549]
[1731519053880,159.89352525,216.22,216.05,4.71349]
[1731519054069,159.89352525,216.22,216.05,4.588]
[1731519054577,159.89352525,216.22,216.06,0.12549]
[1731519054758,36.69028104,216.17,216.04,18.6525967]
[1731519054972,36.69028104,216.15,216.04,12.8463]
[1731519055280,159.89352525,216.15,215.97,12.3154]
[1731519055488,36.69028104,216.11,215.97,12.3154]
[1731519055653,36.69028104,216.1,215.97,12.3154]
[1731519056067,36.69028104,216.11,215.98,0.12549]
[1731519056275,36.69028104,216.07,215.94,6.26812519]
[1731519056578,36.69028104,216.1,215.94,6.26812519]
[1731519057261,4.6279,216.08,215.94,10.85612519]
[1731519057668,4.6279,216.08,215.94,6.26812519]
[1731519057970,36.69028104,216.12,215.95,0.12549]
[1731519058158,159.89352525,216.14,215.95,0.12549]
[1731519058159,159.89352525,216.13,215.95,0.12549]
[1731519058376,159.89352525,216.13,215.95,23.902374]
[1731519058556,159.89352525,216.13,215.97,23.902374]
[1731519058772,159.89352525,216.13,215.99,23.902374]
[1731519058971,159.89352525,216.13,216.01,23.902374]
[1731519059377,159.89352525,216.2,216.03,23.902374]
[1731519059575,32.0089,216.21,216.03,23.902374]
[1731519059576,159.89352525,216.19,216.03,23.902374]
[1731519059765,159.89352525,216.19,216.05,0.12549]
[1731519060492,159.89352525,216.19,216.04,0.12549]
[1731519061177,36.69028104,216.17,216.04,0.12549]
[1731519061361,41.31598104,216.18,216.04,0.12549]
[1731519061964,167.11400961,216.17,216.04,0.12549]
[1731519062164,7.22048436,216.17,216.04,23.776884]
[1731519062483,7.22048436,216.17,216.05,0.12549]
[1731519063062,167.11400961,216.17,216.05,0.12549]
[1731519063260,7.22048436,216.17,216.05,0.12549]
[1731519063558,11.84658436,216.17,216.05,0.12549]
[1731519063965,171.74010961,216.17,216.05,0.12549]
[1731519064171,48.5368654,216.17,216.05,0.12549]
[1731519064370,4.6264,216.15,216.05,0.12549]
[1731519064571,159.89352525,216.14,216.01,5.63014085]
[1731519064767,159.89352525,216.14,215.95,0.12549]
[1731519064974,7.22048436,216.17,215.97,0.12549]
[1731519065181,11.84648436,216.17,215.96,0.12549]
[1731519065368,196.58380629,216.16,215.96,0.12549]
[1731519065782,196.58380629,216.16,215.95,0.12549]
[1731519066082,196.58380629,216.15,215.95,0.12549]
[1731519066486,4.6266,216.14,215.95,0.12549]
[1731519066666,7.22048436,216.17,215.96,0.1]
[1731519066985,7.22048436,216.17,215.94,30.19481536]
[1731519066986,36.69028104,216.16,216.0,23.776884]
[1731519067289,11.84658436,216.17,216.04,23.902374]
[1731519067880,48.5368654,216.17,216.04,23.902374]
[1731519068091,36.69028104,216.16,215.94,6.48609892]
[1731519068381,36.69028104,216.14,215.95,24.588]
[1731519068616,41.31668104,216.15,215.96,0.12549]
[1731519068790,159.89352525,216.16,215.96,0.12549]
[1731519068966,7.22048436,216.17,215.97,0.1]
[1731519069174,36.69028104,216.14,215.96,4.588]
[1731519069385,36.69028104,216.15,215.94,6.48609892]
[1731519069566,36.69028104,216.15,215.95,0.12549]
[1731519069880,36.69028104,216.15,215.95,0.21810403]
[1731519070068,4.6262,216.16,215.95,0.21810403]
[1731519070271,7.22048436,216.17,216.02,0.12549]